bitfinex/quotes_SOLUSD_20250416
["timestamp","ask_amount","ask_price","bid_price","bid_amount"]
[1744803558146,22.50518425,125.12,125.07,14.51252473]
[1744803558452,14.51252473,125.11,125.07,14.51252473]
[1744803559450,7.99360511,125.1,125.06,14.51252473]
[1744803560452,7.99360511,125.1,125.07,14.51252473]
[1744803560650,7.99360511,125.1,125.06,14.51252473]
[1744803560952,26.64290145,125.11,125.07,14.51252473]
[1744803564563,26.64290145,125.11,125.07,22.50797086]
[1744803565542,26.64290145,125.11,125.07,14.51252473]
[1744803566257,27.99263871,125.12,125.07,22.50769163]
[1744803566445,87.07160274,125.13,125.08,14.51252473]
[1744803566846,60.25697801,125.13,125.09,14.51252473]
[1744803567041,32.1808,125.13,125.1,14.51252473]
[1744803567254,32.1808,125.13,125.1,9.2733867]
[1744803568641,32.1808,125.13,125.09,17.26721433]
[1744803568845,9.2733867,125.12,125.07,19.9933867]
[1744803569143,14.49851386,125.11,125.07,22.49371761]
[1744803569362,14.49851386,125.11,125.07,7.99520375]
[1744803569658,14.49851386,125.11,125.06,22.49437061]
[1744803570366,18.64964886,125.12,125.08,14.49851386]
[1744803570949,18.64964886,125.12,125.08,22.49315144]
[1744803571154,32.1808,125.13,125.09,14.49851386]
[1744803572341,14.49851386,125.15,125.1,14.49851386]
[1744803572542,77.29591386,125.16,125.11,14.49851386]
[1744803572764,62.7974,125.16,125.11,14.49851386]
[1744803572965,85.28596873,125.16,125.12,7.99232736]
[1744803574069,85.28596873,125.16,125.11,22.49114305]
[1744803575065,14.49851386,125.15,125.11,7.99262919]
[1744803576573,7.99105002,125.14,125.1,22.49179946]
[1744803577072,22.4892293,125.15,125.1,22.49179946]
[1744803578064,14.49851386,125.14,125.1,7.9932856]
[1744803579577,22.48980729,125.14,125.1,7.9932856]
[1744803579767,22.48980729,125.14,125.1,22.49179946]
[1744803580453,7.99129343,125.14,125.1,22.49179946]
[1744803583454,57.29591386,125.16,125.1,7.9932856]
[1744803583654,57.29591386,125.16,125.11,14.49851386]
[1744803584168,42.7974,125.16,125.11,14.49851386]
[1744803584469,65.28619461,125.16,125.11,14.49851386]
[1744803584774,14.49851386,125.15,125.1,14.49851386]
[1744803585759,22.48937057,125.15,125.1,22.49152928]
[1744803585972,22.48937057,125.15,125.11,14.49851386]
[1744803586675,22.48937057,125.15,125.11,22.49131252]
[1744803586864,22.48937057,125.15,125.11,7.99279866]
[1744803587168,14.49851386,125.14,125.1,22.4918583]
[1744803587375,22.48937057,125.15,125.1,22.4918583]
[1744803588475,22.48937057,125.15,125.11,14.49851386]
[1744803588849,26.64050557,125.15,125.11,14.49851386]
[1744803589055,41.13901943,125.15,125.11,14.49851386]
[1744803589275,35.91369006,125.15,125.11,9.27318449]
[1744803589872,35.91369006,125.15,125.1,17.26656563]
[1744803590077,35.91369006,125.15,125.11,9.27318449]
[1744803590255,26.64050557,125.15,125.11,9.27318449]
[1744803591179,72.07058449,125.16,125.11,17.26591195]
[1744803591388,32.0774,125.16,125.13,9.27318449]
[1744803592384,40.06719907,125.16,125.13,9.27318449]
[1744803592571,49.34038356,125.16,125.12,9.27318449]
[1744803593382,49.34038356,125.16,125.11,7.99272746]
[1744803593580,49.34038356,125.16,125.11,17.26591195]
[1744803596593,40.06719907,125.16,125.13,9.27318449]
[1744803598387,40.06719907,125.16,125.12,17.26539755]
[1744803599492,40.06719907,125.16,125.12,9.27318449]
[1744803599869,40.06719907,125.16,125.11,9.27318449]
[1744803600069,49.34038356,125.16,125.11,9.27318449]
[1744803601073,49.34038356,125.16,125.11,17.26614021]
[1744803601472,40.06719907,125.16,125.12,9.27318449]
[1744803601681,40.06719907,125.16,125.13,9.27318449]
[1744803602188,40.06719907,125.16,125.12,9.27318449]
[1744803602984,25.29324886,125.19,125.15,9.27318449]
[1744803603183,42.55457035,125.19,125.14,9.27318449]
[1744803603394,68.55457035,125.19,125.14,9.27318449]
[1744803603689,40.631737,125.19,125.15,9.27318449]
[1744803603903,32.6436,125.19,125.16,9.27318449]
[1744803604200,32.6436,125.19,125.15,9.27318449]
[1744803604201,40.63166503,125.19,125.15,9.27318449]
[1744803604486,40.63166503,125.19,125.16,9.27318449]
[1744803604997,40.63166503,125.19,125.15,9.27318449]
[1744803606290,9.27318449,125.17,125.12,9.27318449]
[1744803606497,9.27318449,125.18,125.12,7.99213569]
[1744803606807,9.27318449,125.17,125.12,17.26532018]
[1744803607296,7.98977309,125.16,125.12,17.26532018]
[1744803607496,9.27318449,125.17,125.12,17.26532018]
[1744803608487,17.26256843,125.17,125.12,17.26532018]
[1744803609576,17.26256843,125.17,125.13,9.27318449]
[1744803610280,7.98938394,125.17,125.13,9.27318449]
[1744803611303,7.98938394,125.17,125.14,9.27318449]
[1744803611487,51.29324886,125.19,125.16,9.27318449]
[1744803612003,51.29324886,125.19,125.15,9.27318449]
[1744803612567,59.28143613,125.19,125.15,9.27318449]
[1744803613201,14.46738866,125.22,125.17,9.27318449]
[1744803613392,43.79703752,125.22,125.18,9.27318449]
[1744803613904,69.79703752,125.22,125.18,9.27318449]
[1744803614691,69.79703752,125.22,125.18,17.26167177]
[1744803614895,43.79703752,125.22,125.18,17.26167177]
[1744803615202,69.79703752,125.22,125.18,17.26167177]
[1744803615376,43.161,125.22,125.19,9.27318449]
[1744803615572,17.161,125.22,125.2,9.27318449]
[1744803615985,17.161,125.22,125.19,9.27318449]
[1744803616991,34.42014795,125.22,125.17,17.26194191]
[1744803617199,33.12488845,125.21,125.17,14.47523959]
[1744803617693,33.12488845,125.21,125.16,22.46470804]
[1744803617893,14.47523959,125.21,125.16,22.46470804]
[1744803618397,39.62220305,125.22,125.17,14.47523959]
[1744803619194,39.62220305,125.22,125.17,22.46419032]
[1744803619702,20.0,125.23,125.18,1.6105]
[1744803620001,49.51585657,125.32,125.18,1.6105]
[1744803620002,173.30549799,125.35,125.27,1.6105]
[1744803620297,173.30549799,125.35,125.34,14.47523959]
[1744803620796,173.30549799,125.35,125.34,22.45353861]
[1744803621002,173.30549799,125.35,125.34,28.37596596]
[1744803621379,173.30549799,125.35,125.34,31.32899131]
[1744803622201,41.98156859,125.35,125.34,31.32899131]
[1744803622386,240.72641714,125.37,125.35,57.8590961]
[1744803622594,240.72641714,125.37,125.36,14.47523959]
[1744803622801,185.0010013,125.4,125.36,14.47523959]
[1744803622802,11.32,125.4,125.36,17.42826494]
[1744803622996,11.32,125.4,125.36,2.95302535]
[1744803623186,11.32,125.4,125.36,34.01838859]
[1744803623480,23.08847234,125.42,125.36,31.06536324]
[1744803623689,249.26,125.44,125.36,31.06536324]
[1744803623690,39.24544801,125.68,125.41,23.08847234]
[1744803624002,23.08847234,125.56,125.49,26.0]
[1744803624202,12.68,125.59,125.53,23.08847234]
[1744803624499,61.76847234,125.59,125.54,23.08847234]
[1744803624801,38.68,125.59,125.54,23.08847234]
[1744803625003,35.76847234,125.59,125.55,12.35584783]
[1744803625408,23.08847234,125.57,125.55,12.35584783]
[1744803625705,23.08847234,125.56,125.55,12.35584783]
[1744803625901,23.08847234,125.56,125.55,25.10879259]
[1744803626202,35.76847234,125.56,125.55,25.10879259]
[1744803626387,35.76847234,125.56,125.51,25.10879259]
[1744803626588,23.08847234,125.55,125.51,25.10879259]
[1744803626788,23.08847234,125.55,125.51,33.07616989]
[1744803627305,23.08847234,125.55,125.51,7.9673773]
[1744803627494,12.68,125.54,125.52,23.08847234]
[1744803627698,12.68,125.56,125.53,23.08847234]
[1744803628090,23.08847234,125.58,125.52,23.08847234]
[1744803628297,12.68,125.57,125.54,23.08847234]
[1744803628494,12.66,125.56,125.53,23.08847234]
[1744803628704,35.74847234,125.56,125.51,7.9673773]
[1744803628906,23.08847234,125.55,125.51,7.9673773]
[1744803629209,23.08847234,125.54,125.5,7.96805175]
[1744803629704,23.08847234,125.55,125.5,31.05652409]
[1744803629913,77.5655884,125.67,125.59,26.0]
[1744803630092,26.09765242,125.87,125.71,1.0]
[1744803630093,23.08847234,125.81,125.71,1.0]
[1744803630300,13.48,125.8,125.71,24.08847234]
[1744803630500,23.08847234,125.78,125.71,24.08847234]
[1744803630807,13.48,125.79,125.74,1.0]
[1744803630808,13.48,125.77,125.74,1.0]
[1744803631013,13.48,125.77,125.73,23.08847234]
[1744803631014,36.56847234,125.77,125.73,1.0]
[1744803631321,13.48,125.77,125.72,31.04259405]
[1744803631498,13.48,125.77,125.73,1.0]
[1744803631688,13.48,125.77,125.73,24.08847234]
[1744803631889,23.08847234,125.78,125.73,24.08847234]
[1744803632103,13.46,125.77,125.73,1.0]
[1744803632301,23.08847234,125.74,125.71,1.0]
[1744803632592,26.0,125.75,125.71,1.0]
[1744803632797,49.08847234,125.75,125.71,1.0]
[1744803633003,26.0,125.75,125.72,1.0]
[1744803633426,33.91836994,125.73,125.71,1.0]
[1744803633816,47.37836994,125.72,125.69,1.0]
[1744803634140,33.91836994,125.7,125.69,1.0]
[1744803634436,33.91836994,125.71,125.69,1.0]
[1744803634806,47.37836994,125.72,125.69,1.0]
[1744803635208,33.91836994,125.71,125.69,1.0]
[1744803636336,47.37836994,125.72,125.69,1.0]
[1744803636541,33.91836994,125.7,125.65,1.0]
[1744803636860,33.91836994,125.67,125.65,1.0]
[1744803637011,43.32858147,125.81,125.65,1.0]
[1744803637012,6.1476,125.86,125.78,1.0]
[1744803637213,7.94596839,125.85,125.8,33.91836994]
[1744803637539,14.44,125.84,125.79,34.91836994]
[1744803637742,26.0,125.81,125.78,33.91836994]
[1744803638034,26.0,125.81,125.77,1.0]
[1744803638244,14.44,125.84,125.78,34.91836994]
[1744803638416,48.35836994,125.84,125.79,1.0]
[1744803638733,59.91836994,125.83,125.79,1.0]
[1744803639124,48.35836994,125.84,125.79,1.0]
[1744803639436,14.44,125.84,125.81,1.0]
[1744803639946,14.44,125.84,125.8,1.0]
[1744803640125,33.91836994,125.83,125.8,1.0]
[1744803640956,40.44,125.84,125.8,1.0]
[1744803641159,33.91836994,125.83,125.8,1.0]
[1744803641622,26.0,125.81,125.78,1.0]
[1744803643935,26.0,125.81,125.77,33.91836994]
[1744803644251,26.0,125.81,125.78,1.0]
[1744803645235,41.86633053,125.82,125.79,1.0]
[1744803645436,41.86633053,125.82,125.76,7.95150865]
[1744803645437,33.91836994,125.8,125.76,1.0]
[1744803645629,33.91836994,125.8,125.77,1.0]
[1744803645830,33.91836994,125.8,125.78,1.0]
[1744803648551,48.33836994,125.8,125.78,1.0]
[1744803648855,48.33836994,125.8,125.76,8.95162886]
[1744803649050,14.42,125.8,125.78,1.0]
[1744803651755,14.42,125.8,125.77,1.0]
[1744803651941,14.42,125.8,125.78,1.0]
[1744803652757,14.42,125.8,125.77,1.0]
[1744803652951,14.42,125.8,125.78,1.0]
[1744803653152,14.42,125.8,125.76,41.8699988]
[1744803653153,14.42,125.8,125.77,1.0]
[1744803653458,14.42,125.8,125.78,1.0]
[1744803657167,14.42,125.8,125.79,1.0]
[1744803657353,14.42,125.8,125.78,1.0]
[1744803657538,14.42,125.8,125.77,1.0]
[1744803657739,14.42,125.8,125.79,1.0]
[1744803657965,14.42,125.8,125.77,1.0]
[1744803658177,14.42,125.8,125.79,1.0]
[1744803658350,14.42,125.8,125.77,1.0]
[1744803658550,14.42,125.8,125.78,1.0]
[1744803658862,14.42,125.8,125.79,1.0]
[1744803659043,14.42,125.8,125.79,23.94138904]
[1744803660767,36.80138904,125.84,125.79,31.89114657]
[1744803660949,7.94609742,125.85,125.82,1.0]
[1744803660950,21.80609742,125.85,125.82,1.0]
[1744803661774,21.80609742,125.85,125.81,23.94138904]
[1744803661973,21.80609742,125.85,125.82,1.0]
[1744803662148,21.80609742,125.85,125.81,22.94138904]
[1744803662149,22.94138904,125.84,125.81,1.0]
[1744803662471,44.74748646,125.85,125.81,1.0]
[1744803664557,21.80609742,125.85,125.82,1.0]
[1744803665076,13.86,125.85,125.83,1.0]
[1744803665241,13.86,125.85,125.82,1.0]
[1744803665438,21.80610619,125.85,125.82,1.0]
[1744803665855,21.80610619,125.85,125.83,1.0]
[1744803666240,13.86,125.85,125.83,1.0]
[1744803666864,44.74746801,125.85,125.81,23.94138904]
[1744803667072,44.74746801,125.85,125.81,1.0]
[1744803667279,21.80607897,125.85,125.83,1.0]
[1744803667875,21.80607897,125.85,125.81,1.0]
[1744803668148,21.80607897,125.85,125.82,1.0]
[1744803668778,21.80607897,125.85,125.83,2.91238341]
[1744803669077,44.74746801,125.85,125.83,2.91238341]
[1744803669752,44.74746801,125.85,125.82,1.0]
[1744803670052,44.74746801,125.85,125.81,1.0]
[1744803670569,44.74746801,125.85,125.8,22.94138904]
[1744803670570,22.94138904,125.84,125.8,1.0]
[1744803670792,22.94138904,125.83,125.8,1.0]
[1744803670974,22.94138904,125.84,125.8,1.0]
[1744803671174,22.94138904,125.84,125.81,6.84110555]
[1744803671376,22.94138904,125.84,125.81,5.84110555]
[1744803671764,30.8885189,125.84,125.81,5.84110555]
[1744803671965,30.8885189,125.84,125.81,6.84110555]
[1744803672275,30.8885189,125.84,125.82,5.84110555]
[1744803673192,22.94138904,125.83,125.82,5.84110555]
[1744803673392,48.94138904,125.83,125.78,1.0]
[1744803673694,22.94138904,125.81,125.78,1.0]
[1744803673889,22.94138904,125.81,125.79,1.0]
[1744803674064,22.94138904,125.81,125.77,7.95076091]
[1744803674065,30.88925106,125.82,125.78,1.0]
[1744803674259,30.88925106,125.82,125.79,1.0]
[1744803675186,7.94786202,125.82,125.79,1.0]
[1744803678093,7.94786202,125.82,125.78,1.0]
[1744803678293,7.94786202,125.82,125.79,1.0]
[1744803678786,7.94786202,125.82,125.78,8.95035809]
[1744803679092,7.94786202,125.82,125.79,1.0]
[1744803679291,7.94786202,125.82,125.78,8.95035809]
[1744803679892,7.94786202,125.82,125.78,1.0]
[1744803681086,7.94786202,125.82,125.79,2.96412513]
[1744803681291,7.94786202,125.82,125.79,3.96412513]
[1744803681594,13.34,125.81,125.79,3.96412513]
[1744803682092,13.34,125.81,125.79,8.94972678]
[1744803682472,7.94692396,125.84,125.8,23.94138904]
[1744803682688,13.34,125.83,125.82,1.0]
[1744803682897,13.34,125.83,125.82,23.94138904]
[1744803683195,13.34,125.83,125.82,1.0]
[1744803683393,13.34,125.83,125.81,23.94138904]
[1744803683580,13.34,125.83,125.82,1.0]
[1744803685805,13.34,125.83,125.81,1.0]
[1744803686096,13.34,125.83,125.82,1.0]
[1744803686784,13.34,125.83,125.81,8.94836325]
[1744803686985,13.34,125.83,125.81,1.0]
[1744803688078,13.34,125.83,125.82,1.0]
[1744803689099,13.34,125.83,125.8,31.89029773]
[1744803689278,44.22876228,125.83,125.81,1.0]
[1744803689982,44.22876228,125.83,125.8,1.0]
[1744803690211,21.28737324,125.83,125.81,1.0]
[1744803690413,44.22876228,125.83,125.8,1.0]
[1744803691000,21.28737324,125.83,125.81,1.0]
[1744803691204,13.34,125.83,125.81,1.0]
[1744803693217,21.28727262,125.83,125.81,1.0]
[1744803693416,13.34,125.83,125.81,1.0]
[1744803693720,13.34,125.83,125.8,23.27926078]
[1744803693884,13.34,125.83,125.81,1.0]
[1744803694479,13.34,125.83,125.81,8.9484776]
[1744803694800,13.34,125.83,125.81,1.0]
[1744803695016,13.34,125.83,125.81,8.94844904]
[1744803695218,13.34,125.83,125.82,1.0]
[1744803696003,21.28630454,125.85,125.82,1.0]
[1744803696307,21.28630454,125.85,125.83,1.0]
[1744803697014,7.94630454,125.85,125.83,1.0]
[1744803697183,13.34,125.85,125.83,1.0]
[1744803698505,13.34,125.85,125.83,14.33039796]
[1744803698713,13.34,125.85,125.83,1.0]
[1744803699309,13.34,125.85,125.83,23.27734859]
[1744803700209,13.34,125.85,125.84,15.33039796]
[1744803700391,13.34,125.85,125.84,23.27699681]
[1744803700736,13.34,125.85,125.84,1.0]
[1744803701009,13.34,125.85,125.84,7.94659885]
[1744803701209,13.34,125.85,125.84,1.0]
[1744803701805,13.34,125.85,125.83,8.94719341]
[1744803702109,13.34,125.85,125.84,1.0]
[1744803702509,13.34,125.85,125.83,23.27759137]
[1744803702698,13.34,125.85,125.84,1.0]
[1744803705711,13.34,125.85,125.84,23.27699681]
[1744803705917,13.34,125.85,125.84,26.24643547]
[1744803706318,13.34,125.85,125.84,11.91603751]
[1744803706611,13.34,125.85,125.84,11.91558145]
[1744803706815,13.34,125.85,125.84,3.9689826]
[1744803707416,13.34,125.85,125.84,26.24597941]
[1744803707589,12.84,125.89,125.87,1.0]
[1744803707995,12.84,125.89,125.87,15.33039796]
[1744803708725,12.84,125.89,125.88,7.94407372]
[1744803709616,12.84,125.89,125.88,8.94407372]
[1744803709820,12.84,125.93,125.88,23.27447168]
[1744803709994,16.82840419,125.93,125.9,1.0]
[1744803710200,14.33039796,125.92,125.89,1.0]
[1744803710518,14.33039796,125.9,125.86,1.0]
[1744803710730,22.27406687,125.89,125.86,1.0]
[1744803711296,14.33039796,125.88,125.86,1.0]
[1744803711621,14.33039796,125.87,125.85,1.0]
[1744803712127,14.33039796,125.87,125.84,1.0]
[1744803712629,14.33039796,125.87,125.83,1.0]
[1744803712930,7.94533608,125.86,125.83,1.0]
[1744803713401,7.94533608,125.86,125.84,1.0]
[1744803716131,7.94533608,125.86,125.83,1.0]
[1744803716507,7.94533608,125.86,125.84,1.0]
[1744803717933,22.27527967,125.87,125.84,1.0]
[1744803718234,7.94488171,125.87,125.84,1.0]
[1744803719433,7.94488171,125.87,125.83,23.27756618]
[1744803719634,7.94488171,125.87,125.84,1.0]
[1744803721510,12.84,125.88,125.85,1.0]
[1744803721728,35.11453058,125.88,125.85,1.0]
[1744803723138,14.33039796,125.87,125.84,1.0]
[1744803723514,7.94533608,125.86,125.84,1.0]
[1744803723723,12.34,125.88,125.84,15.33039796]
[1744803724035,34.61447168,125.88,125.84,1.0]
[1744803724230,14.33039796,125.87,125.84,1.0]
[1744803724431,14.33039796,125.87,125.83,15.33039796]
[1744803724638,14.33039796,125.87,125.84,1.0]
[1744803724832,34.61447168,125.88,125.84,1.0]
[1744803725337,14.33039796,125.87,125.84,1.0]
[1744803725845,7.94533608,125.86,125.84,1.0]
[1744803727846,22.27573404,125.86,125.83,1.0]
[1744803728627,14.33039796,125.85,125.82,1.0]
[1744803730039,22.27671607,125.85,125.82,1.0]
[1744803730338,22.27601956,125.86,125.84,1.0]
[1744803730541,22.27601956,125.86,125.83,1.0]
[1744803730761,22.27601956,125.86,125.84,1.0]
[1744803730928,22.27601956,125.86,125.82,1.0]
[1744803731734,14.33039796,125.85,125.82,1.0]
[1744803732131,22.27656187,125.85,125.83,1.0]
[1744803732338,7.94616391,125.85,125.82,1.0]
[1744803732641,7.94616391,125.85,125.83,1.0]
[1744803733151,22.27656187,125.85,125.82,1.0]
[1744803734053,22.27656187,125.85,125.83,1.0]
[1744803734432,22.27656187,125.85,125.82,1.0]
[1744803736144,22.27656187,125.85,125.83,1.0]
[1744803736350,22.27656187,125.85,125.82,1.0]
[1744803736743,14.33039796,125.84,125.82,1.0]
[1744803736950,26.67039796,125.83,125.79,1.0]
[1744803737256,21.51273569,125.83,125.8,1.0]
[1744803738355,29.46030563,125.83,125.79,10.17273569]
[1744803738528,29.46030563,125.83,125.8,1.0]
[1744803738726,29.46030563,125.83,125.79,10.17273569]
[1744803738951,29.46030563,125.83,125.8,1.0]
[1744803739353,29.46030563,125.83,125.79,18.12246014]
[1744803739555,29.46030563,125.83,125.8,1.0]
[1744803741153,18.64964886,125.86,125.8,9.17273569]
[1744803741351,12.36,125.85,125.82,9.17273569]
[1744803741555,21.53273569,125.85,125.81,10.17273569]
[1744803742253,21.53273569,125.85,125.81,1.0]
[1744803742460,21.53273569,125.85,125.81,18.12091296]
[1744803742645,29.47876955,125.85,125.81,18.12091296]
[1744803743955,29.47876955,125.85,125.81,17.12091296]
[1744803744156,29.47876955,125.85,125.81,8.94817727]
[1744803744360,29.47876955,125.85,125.81,1.0]
[1744803746058,9.17273569,125.84,125.81,1.0]
[1744803746270,9.17273569,125.84,125.78,1.0]
[1744803746271,9.17273569,125.82,125.78,1.0]
[1744803746565,9.17273569,125.82,125.79,1.0]
[1744803747845,9.17273569,125.81,125.79,1.0]
[1744803748466,12.36,125.8,125.79,1.0]
[1744803749966,12.36,125.8,125.78,1.0]
[1744803750778,9.17273569,125.79,125.77,1.0]
[1744803751066,9.17273569,125.78,125.73,1.0]
[1744803751243,9.17273569,125.74,125.73,1.0]
[1744803751447,21.53273569,125.75,125.73,1.0]
[1744803751849,9.17273569,125.74,125.73,1.0]
[1744803752447,9.17273569,125.74,125.71,1.0]
[1744803752647,9.17273569,125.74,125.69,7.9557942]
[1744803752648,9.17273569,125.73,125.72,1.0]
[1744803753158,17.12628695,125.73,125.72,1.0]
[1744803753467,17.12628695,125.73,125.71,1.0]
[1744803753668,9.17273569,125.72,125.69,1.0]
[1744803754273,11.89374055,125.73,125.69,1.0]
[1744803754274,9.17273569,125.71,125.69,1.0]
[1744803754472,9.17273569,125.72,125.71,1.0]
[1744803754675,9.17273569,125.72,125.69,1.0]
[1744803754873,9.17273569,125.71,125.68,1.0]
[1744803755059,11.9,125.7,125.69,1.0]
[1744803755461,11.9,125.7,125.68,10.17273569]
[1744803755789,11.9,125.7,125.68,1.0]
[1744803755957,11.9,125.7,125.69,1.0]
[1744803756158,11.9,125.7,125.69,10.17273569]
[1744803757049,11.9,125.7,125.69,18.12881811]
[1744803759951,11.9,125.7,125.69,8.95608242]
[1744803760152,11.9,125.7,125.69,18.12881811]
[1744803760878,9.17273569,125.76,125.72,1.0]
[1744803761047,11.92,125.75,125.73,1.0]
[1744803761449,11.92,125.75,125.72,1.0]
[1744803761751,11.92,125.75,125.73,1.0]
[1744803764476,11.92,125.75,125.72,8.95411986]
[1744803764680,11.92,125.75,125.73,1.0]
[1744803764875,21.09273569,125.75,125.72,1.0]
[1744803765073,29.04512365,125.75,125.72,1.0]
[1744803766178,21.09273569,125.75,125.73,1.0]
[1744803766377,11.92,125.75,125.73,1.0]
[1744803766564,11.92,125.75,125.72,1.0]
[1744803766768,11.92,125.75,125.73,1.0]
[1744803766975,29.04514778,125.75,125.72,1.0]
[1744803767284,9.17273569,125.73,125.7,1.0]
[1744803767464,9.17273569,125.73,125.69,1.0]
[1744803767784,9.17273569,125.73,125.71,1.0]
[1744803767976,9.17273569,125.73,125.7,1.0]
[1744803768679,17.12663363,125.73,125.7,1.0]
[1744803768981,17.12663363,125.73,125.71,1.0]
[1744803769156,17.12663363,125.73,125.7,1.0]
[1744803770075,17.12663363,125.73,125.69,1.0]
[1744803770281,7.95325204,125.74,125.71,1.0]
[1744803770476,9.17273569,125.73,125.71,1.0]
[1744803770660,17.12660368,125.73,125.71,1.0]
[1744803773180,9.17273569,125.75,125.71,1.0]
[1744803773381,11.92,125.74,125.73,1.0]
[1744803773982,9.17273569,125.75,125.73,1.0]
[1744803774188,7.94849376,125.81,125.78,1.0]
[1744803774390,6.3306,125.82,125.79,9.17273569]
[1744803774566,23.567901,125.85,125.81,1.0]
[1744803774773,32.4489,125.85,125.81,10.17273569]
[1744803775287,6.4489,125.85,125.82,1.0]
[1744803775487,6.4489,125.85,125.82,10.17273569]
[1744803775808,6.4489,125.85,125.82,1.0]
[1744803776389,13.24435161,125.86,125.82,1.0]
[1744803776575,4.07161592,125.86,125.82,10.17273569]
[1744803776893,13.24435161,125.86,125.83,1.0]
[1744803777193,14.32239905,125.87,125.83,23.26962944]
[1744803777393,20.60699905,125.88,125.83,23.26962944]
[1744803777586,46.60699905,125.88,125.83,23.26962944]
[1744803777788,32.2846,125.88,125.83,23.26962944]
[1744803778100,11.9,125.89,125.86,1.0]
[1744803778470,3.95596534,125.92,125.88,1.0]
[1744803778676,14.32239905,125.89,125.88,1.0]
[1744803779693,14.32239905,125.9,125.88,1.0]
[1744803780286,14.32239905,125.91,125.88,1.0]
[1744803780488,14.32239905,125.91,125.87,14.32239905]
[1744803780489,9.4333882,125.95,125.9,15.32239905]
[1744803780675,14.7934882,125.95,125.93,14.32239905]
[1744803780996,14.7934882,125.95,125.94,1.0]
[1744803781168,14.7934882,125.95,125.93,1.0]
[1744803781169,2.8934882,125.95,125.93,1.0]
[1744803781590,2.8934882,125.95,125.94,1.0]
[1744803781999,2.8934882,125.95,125.93,1.0]
[1744803782200,25.15576494,125.95,125.93,1.0]
[1744803782597,17.21588725,125.95,125.94,1.0]
[1744803782987,25.15557135,125.95,125.93,1.0]
[1744803784306,2.8934882,125.95,125.93,1.0]
[1744803784511,2.8934882,125.95,125.94,1.0]
[1744803786505,10.83314679,125.95,125.94,1.0]
[1744803786686,25.15554584,125.95,125.92,1.0]
[1744803786893,14.32239905,125.94,125.93,1.0]
[1744803787509,22.26330402,125.94,125.91,1.0]
[1744803788000,14.32239905,125.92,125.9,1.0]
[1744803788195,14.32239905,125.91,125.9,1.0]
[1744803788499,11.84,125.92,125.91,1.0]
[1744803788703,17.21588725,125.95,125.93,1.0]
[1744803789003,2.8934882,125.95,125.94,1.0]
[1744803789504,10.83314679,125.95,125.94,1.0]
[1744803789685,25.15554584,125.95,125.94,1.0]
[1744803790603,25.15554584,125.95,125.93,1.0]
[1744803791201,25.15554584,125.95,125.94,1.0]
[1744803791402,25.15554584,125.95,125.93,1.0]
[1744803791980,25.15554584,125.95,125.94,1.0]
[1744803792178,25.15554584,125.95,125.93,1.0]
[1744803792384,14.32239905,125.94,125.93,1.0]
[1744803793291,25.15554584,125.95,125.93,1.0]
[1744803793811,14.32239905,125.94,125.92,1.0]
[1744803793987,14.32239905,125.93,125.92,1.0]
[1744803794304,14.32239905,125.93,125.91,1.0]
[1744803794508,14.32239905,125.92,125.9,1.0]
[1744803794706,14.32239905,125.91,125.89,1.0]
[1744803794910,14.32239905,125.9,125.89,1.0]
[1744803795104,14.32239905,125.9,125.87,1.0]
[1744803795309,14.32239905,125.88,125.87,1.0]
[1744803795492,14.32239905,125.88,125.86,1.0]
[1744803795697,14.32239905,125.87,125.86,1.0]
[1744803795912,34.1071039,125.87,125.86,1.0]
[1744803796103,26.16239905,125.87,125.86,1.0]
[1744803797102,34.1071039,125.87,125.85,1.0]
[1744803797504,14.32239905,125.86,125.85,1.0]
[1744803798013,26.16239905,125.87,125.85,1.0]
[1744803798413,19.78470485,125.87,125.86,1.0]